fUST/lending_fUST_20250903
["ID","MTS","AMOUNT","RATE_DAILY","PERIOD"]
[383138538,1756863041992,-1445.42,0.00013698,2]
[383138540,1756863042001,-1020.3,0.00013698,2]
[383138542,1756863042011,-480.0,0.00013698,2]
[383138544,1756863042020,-480.0,0.00013698,2]
[383138546,1756863042030,-480.0,0.00013698,2]
[383138548,1756863042039,-482.15273842,0.00013698,2]
[383138550,1756863042050,-688.9,0.00013698,2]
[383138552,1756863042060,-480.0,0.00013698,2]
[383138554,1756863042069,-480.0,0.00013698,2]
[383138556,1756863042079,-612.04,0.00013698,2]
[383138558,1756863042088,-485.76563658,0.00013698,2]
[383138560,1756863042099,-481.21505441,0.00013698,2]
[383138562,1756863042109,-480.0,0.00013698,2]
[383138564,1756863042120,-483.51997807,0.00013698,2]
[383138566,1756863042129,-482.73678879,0.00013698,2]
[383138568,1756863042138,-611.82462032,0.00013698,2]
[383138570,1756863042148,-352.52077573,0.00013698,2]
[383138572,1756863042157,-1471.15,0.00013698,2]
[383138574,1756863042167,-485.74319213,0.00013698,2]
[383138576,1756863042176,-483.65213712,0.00013698,2]
[383138578,1756863042186,-481.58616544,0.00013698,2]
[383138580,1756863042195,-480.0,0.00013698,2]
[383138582,1756863042204,-465.76954309,0.00013698,2]
[383138584,1756863042213,-804.893503,0.00013699,2]
[383138586,1756863042222,-648.0,0.000139,2]
[383138588,1756863042231,-175.39,0.00013937,2]
[383138590,1756863042241,-351.81263135,0.00013972,2]
[383138592,1756863042250,-542.34676921,0.00013972,2]
[383138594,1756863042259,-480.0,0.00013972,2]
[383138596,1756863042269,-480.0,0.00013972,2]
[383138598,1756863042278,-480.0,0.00013972,2]
[383138600,1756863042287,-480.0,0.00013972,2]
[383138602,1756863042297,-480.0,0.00013972,2]
[383138604,1756863042307,-480.0,0.00013972,2]
[383138606,1756863042316,-480.0,0.00013972,2]
[383138608,1756863042326,-482.32,0.00013972,2]
[383138610,1756863042335,-480.0,0.00013972,2]
[383138612,1756863042345,-460.38,0.00013972,2]
[383138614,1756863042354,-482.53646566,0.00013972,2]
[383138616,1756863042364,-480.0,0.00013972,2]
[383138618,1756863042373,-433.28805066,0.00013972,2]
[383138620,1756863042382,-480.0,0.00013972,2]
[383138622,1756863042392,-548.83,0.00013972,2]
[383138624,1756863042401,-480.0,0.00013972,2]
[383138626,1756863042411,-480.0,0.00013972,2]
[383138627,1756863042420,-183.98,0.00013972,2]
[383138629,1756863042430,-480.0,0.00013972,2]
[383138632,1756863042439,-480.0,0.00013972,2]
[383138634,1756863042449,-480.0,0.00013972,2]
[383138636,1756863042459,-480.0,0.00013972,2]
[383138637,1756863042468,-480.0,0.00013972,2]
[383138639,1756863042478,-329.88,0.00013972,2]
[383138641,1756863042487,-480.0,0.00013972,2]
[383138643,1756863042497,-364.65884881,0.00013972,2]
[383138645,1756863042507,-517.33110374,0.00013972,2]
[383138648,1756863042517,-480.0,0.00013972,2]
[383138650,1756863042526,-480.0,0.00013972,2]
[383138652,1756863042536,-480.0,0.00013972,2]
[383138654,1756863042546,-480.0,0.00013972,2]
[383138656,1756863042556,-480.0,0.00013972,2]
[383138657,1756863042565,-480.0,0.00013972,2]
[383138659,1756863042575,-554.06,0.00013972,2]
[383138662,1756863042584,-480.0,0.00013972,2]
[383138664,1756863042595,-480.0,0.00013972,2]
[383138666,1756863042605,-318.54,0.00013972,2]
[383138668,1756863042615,-203.10768575,0.00013972,2]
[383138670,1756863042626,-480.0,0.00013972,2]
[383138672,1756863042636,-461.33,0.00013972,2]
[383138674,1756863042646,-480.0,0.00013972,2]
[383138676,1756863042655,-480.0,0.00013972,2]
[383138678,1756863042665,-291.53,0.00013972,2]
[383138680,1756863042674,-480.0,0.00013972,2]
[383138682,1756863042684,-480.0,0.00013972,2]
[383138684,1756863042694,-480.0,0.00013972,2]
[383138686,1756863042704,-480.0,0.00013972,2]
[383138688,1756863042714,-480.0,0.00013972,2]
[383138690,1756863042724,-480.0,0.00013972,2]
[383138692,1756863042734,-480.0,0.00013972,2]
[383138694,1756863042743,-480.0,0.00013972,2]
[383138696,1756863042753,-480.0,0.00013972,2]
[383138698,1756863042763,-480.0,0.00013972,2]
[383138700,1756863042772,-480.0,0.00013972,2]
[383138702,1756863042782,-305.8465282,0.00013972,2]
[383138704,1756863042791,-480.0,0.00013972,2]
[383138706,1756863042801,-480.0,0.00013972,2]
[383138708,1756863042811,-480.0,0.00013972,2]
[383138710,1756863042820,-2436.21,0.00013972,2]
[383138712,1756863042829,-1725.44,0.00013972,2]
[383138714,1756863042839,-480.0,0.00013972,2]
[383138716,1756863042849,-480.0,0.00013972,2]
[383138718,1756863042858,-480.0,0.00013972,2]
[383138720,1756863042868,-480.0,0.00013972,2]
[383138722,1756863042878,-468.35,0.00013972,2]
[383138724,1756863042888,-492.03,0.00013972,2]
[383138726,1756863042897,-480.0,0.00013972,2]
[383138728,1756863042907,-480.0,0.00013972,2]
[383138730,1756863042917,-480.0,0.00013972,2]
[383138732,1756863042926,-480.0,0.00013972,2]
[383138734,1756863042935,-480.0,0.00013972,2]
[383138736,1756863042945,-480.0,0.00013972,2]
[383138738,1756863042954,-877.25,0.00013972,2]
[383138740,1756863042963,-520.0,0.00013972,2]
[383138742,1756863042973,-480.0,0.00013972,2]
[383138744,1756863042982,-480.0,0.00013972,2]
[383138746,1756863042991,-1080.02,0.00013972,2]
[383138748,1756863043001,-766.02,0.00013972,2]
[383138750,1756863043011,-480.0,0.00013972,2]
[383138752,1756863043020,-176.5,0.00013972,2]
[383138754,1756863043030,-480.0,0.00013972,2]
[383138756,1756863043040,-480.0,0.00013972,2]
[383138759,1756863043050,-480.0,0.00013972,2]
[383138762,1756863043060,-179.03,0.00013972,2]
[383138765,1756863043070,-1294.27,0.00013972,2]
[383138768,1756863043079,-480.0,0.00013972,2]
[383138770,1756863043089,-480.0,0.00013972,2]
[383138772,1756863043105,-25.9716445,0.00013972,2]
[383138830,1756863043653,-568.8,0.00013698,2]
[383138832,1756863043664,-454.0283555,0.00013972,2]
[383138834,1756863043674,-554.58,0.00013972,2]
[383138836,1756863043684,-480.0,0.00013972,2]
[383138838,1756863043695,-480.0,0.00013972,2]
[383138840,1756863043704,-480.0,0.00013972,2]
[383138842,1756863043713,-480.0,0.00013972,2]
[383138844,1756863043723,-480.0,0.00013972,2]
[383138846,1756863043733,-480.0,0.00013972,2]
[383138848,1756863043743,-480.0,0.00013972,2]
[383138850,1756863043753,-480.0,0.00013972,2]
[383138852,1756863043762,-480.0,0.00013972,2]
[383138854,1756863043771,-480.0,0.00013972,2]
[383138856,1756863043781,-480.0,0.00013972,2]
[383138858,1756863043790,-480.0,0.00013972,2]
[383138860,1756863043800,-638.11,0.00013972,2]
[383138862,1756863043809,-480.0,0.00013972,2]
[383138864,1756863043818,-696.73,0.00013972,2]
[383138866,1756863043827,-480.0,0.00013972,2]
[383138868,1756863043837,-747.39,0.00013972,2]
[383138870,1756863043846,-488.24,0.00013972,2]
[383138872,1756863043855,-480.0,0.00013972,2]
[383138874,1756863043865,-480.0,0.00013972,2]
[383138876,1756863043877,-1504.57,0.00013972,2]
[383138878,1756863043887,-480.0,0.00013972,2]
[383138880,1756863043896,-361.03067179,0.00013972,2]
[383139163,1756863046744,-485.39240605,0.00013698,2]
[383139165,1756863046754,-118.96932821,0.00013972,2]
[383139167,1756863046763,-480.0,0.00013972,2]
[383139169,1756863046772,-480.0,0.00013972,2]
[383139171,1756863046782,-480.0,0.00013972,2]
[383139173,1756863046792,-480.0,0.00013972,2]
[383139176,1756863046802,-480.0,0.00013972,2]
[383139178,1756863046811,-687.87,0.00013972,2]
[383139180,1756863046821,-480.0,0.00013972,2]
[383139182,1756863046830,-480.0,0.00013972,2]
[383139184,1756863046839,-1537.07,0.00013972,2]
[383139186,1756863046849,-480.0,0.00013972,2]
[383139188,1756863046858,-480.0,0.00013972,2]
[383139190,1756863046867,-480.0,0.00013972,2]
[383139192,1756863046877,-480.0,0.00013972,2]
[383139194,1756863046886,-1445.42,0.00013972,2]
[383139196,1756863046896,-1020.3,0.00013972,2]
[383139198,1756863046905,-480.0,0.00013972,2]
[383139200,1756863046915,-480.0,0.00013972,2]
[383139202,1756863046924,-688.9,0.00013972,2]
[383139204,1756863046933,-480.0,0.00013972,2]
[383139206,1756863046942,-486.03076353,0.00013972,2]
[383139208,1756863046951,-612.04,0.00013972,2]
[383139210,1756863046961,-480.0,0.00013972,2]
[383139212,1756863046970,-1471.15,0.00013972,2]
[383139214,1756863046979,-480.0,0.00013972,2]
[383139216,1756863046989,-568.8,0.00013972,2]
[383139217,1756863046999,-48.95464427,0.00013972,2]
[383139220,1756863047011,-5664.49666172,0.00013972,2]
[383142272,1756863093961,1987.0,0.00029806,60]
[383142276,1756863383680,234.1796284,0.00029794,120]
[383142290,1756864232771,-285.80741817,0.00013598,2]
[383142291,1756864232781,-592.36497669,0.00013598,2]
[383142292,1756864232793,-681.5804446,0.00013598,2]
[383142293,1756864232803,-176.3395554,0.00013689,2]
[383142329,1756864238587,-123.6604446,0.00013689,2]
[383142330,1756864238596,-300.0,0.00013689,2]
[383142331,1756864238606,-300.0,0.00013689,2]
[383142332,1756864238615,-430.3395554,0.00013689,2]
[383142333,1756864238692,-594.82644238,0.00013689,2]
[383142444,1756864529392,8861.0,0.00025,30]
[383142453,1756865340038,580.452563,0.00029816,120]
[383142498,1756865431990,-300.0,0.00013597,2]
[383142499,1756865432001,-318.65603839,0.00013597,2]
[383142611,1756865437895,-881.34396161,0.00013597,2]
[383142613,1756865437906,-500.0,0.00013598,2]
[383142615,1756865437916,-339.36733933,0.00013598,2]
[383142617,1756865437929,-160.63266067,0.00013598,2]
[383142619,1756865437939,-139.36733933,0.00013598,2]
[383142621,1756865437951,-360.63266067,0.00013598,2]
[383142623,1756865437960,-403.50524165,0.00013598,2]
[383142791,1756865439889,-96.49475835,0.00013598,2]
[383142793,1756865439900,-500.0,0.00013598,2]
[383142795,1756865439911,-500.0,0.00013598,2]
[383142797,1756865439921,-500.0,0.00013598,2]
[383142799,1756865439930,-500.0,0.00013598,2]
[383142801,1756865439940,-500.0,0.00013598,2]
[383142803,1756865439949,-500.0,0.00013598,2]
[383142805,1756865439959,-386.60980764,0.00013598,2]
[383142807,1756865439968,-304.60790136,0.00013598,2]
[383142809,1756865439977,-151.0,0.0001369,2]
[383142812,1756865439987,-151.0,0.0001369,2]
[383142814,1756865439996,-151.0,0.0001369,2]
[383142815,1756865440006,-151.0,0.0001369,2]
[383142817,1756865440015,-151.0,0.0001369,2]
[383142819,1756865440025,-165.89366462,0.0001369,2]
[383142822,1756865440034,-288.67352146,0.0001369,2]
[383142824,1756865440044,-151.0,0.0001369,2]
[383142826,1756865440053,-151.0,0.0001369,2]
[383142828,1756865440063,-350.28816665,0.0001369,2]
[383142830,1756865440072,-169.54969167,0.00013697,2]
[383142831,1756865440081,-538.07777017,0.00013697,2]
[383142834,1756865440091,-200.86914318,0.00013697,2]
[383142835,1756865440100,-500.0,0.00013697,2]
[383142838,1756865440110,-565.11955967,0.00013697,2]
[383142839,1756865440120,-366.66340407,0.00013697,2]
[383142841,1756865440129,-500.0,0.00013697,2]
[383142843,1756865440138,-183.88045873,0.00013697,2]
[383142845,1756865440147,-459.18741042,0.00013697,2]
[383142847,1756865440156,-500.0,0.00013697,2]
[383142850,1756865440166,-186.36295029,0.00013697,2]
[383142852,1756865440176,-343.32549272,0.00013697,2]
[383142854,1756865440186,-176.97060931,0.00013697,2]
[383142856,1756865440195,-163.21349741,0.00013697,2]
[383142857,1756865440204,-500.0,0.00013697,2]
[383142859,1756865440214,-500.0,0.00013697,2]
[383142862,1756865440223,-500.0,0.00013697,2]
[383142864,1756865440233,-500.0,0.00013697,2]
[383142866,1756865440242,-293.60221993,0.00013697,2]
[383142868,1756865440251,-500.0,0.00013697,2]
[383142870,1756865440260,-483.36055623,0.00013698,2]
[383142872,1756865440270,-482.42056211,0.00013698,2]
[383142874,1756865440281,-515.81282418,0.00013698,2]
[383142876,1756865440291,-480.0,0.00013698,2]
[383142878,1756865440300,-480.0,0.00013698,2]
[383142880,1756865440309,-338.95307437,0.00013698,2]
[383142882,1756865440319,-482.85155341,0.00013698,2]
[383142884,1756865440328,-480.0,0.00013698,2]
[383142886,1756865440338,-482.42648845,0.00013698,2]
[383142888,1756865440348,-487.56069734,0.00013698,2]
[383142890,1756865440357,-484.57342237,0.00013698,2]
[383142892,1756865440367,-483.93969162,0.00013698,2]
[383142894,1756865440376,-480.0,0.00013698,2]
[383142896,1756865440388,-480.0,0.00013698,2]
[383142898,1756865440398,-482.92239294,0.00013698,2]
[383142900,1756865440407,-556.44879978,0.00013698,2]
[383142902,1756865440417,-483.44340584,0.00013698,2]
[383142904,1756865440426,-485.14655388,0.00013698,2]
[383142906,1756865440436,-563.61287452,0.00013698,2]
[383142908,1756865440445,-482.83977901,0.00013698,2]
[383142910,1756865440454,-484.67838737,0.00013698,2]
[383142912,1756865440464,-483.53699038,0.00013698,2]
[383142914,1756865440473,-482.89183714,0.00013698,2]
[383142916,1756865440482,-482.36531008,0.00013698,2]
[383142918,1756865440492,-518.91016193,0.00013698,2]
[383142920,1756865440503,-480.0,0.00013698,2]
[383142922,1756865440512,-485.35474873,0.00013698,2]
[383142924,1756865440524,-482.49543447,0.00013698,2]
[383142926,1756865440533,-482.92342656,0.00013698,2]
[383142928,1756865440543,-516.60758822,0.00013698,2]
[383142930,1756865440552,-484.00896315,0.00013698,2]
[383142932,1756865440562,-481.78641146,0.00013698,2]
[383142934,1756865440571,-554.74010907,0.00013698,2]
[383142936,1756865440581,-585.17,0.00013698,2]
[383142938,1756865440590,-480.0,0.00013698,2]
[383142940,1756865440599,-480.0,0.00013698,2]
[383142942,1756865440609,-483.01288307,0.00013698,2]
[383142944,1756865440618,-480.0,0.00013698,2]
[383142946,1756865440628,-480.0,0.00013698,2]
[383142948,1756865440637,-484.14933089,0.00013698,2]
[383142950,1756865440646,-215.31089937,0.00013698,2]
[383142952,1756865440655,-480.0,0.00013698,2]
[383142954,1756865440665,-483.76932279,0.00013698,2]
[383142956,1756865440675,-480.0,0.00013698,2]
[383142958,1756865440684,-480.0,0.00013698,2]
[383142960,1756865440694,-320.24014125,0.00013698,2]
[383142962,1756865440703,-480.0,0.00013698,2]
[383142964,1756865440712,-444.924093,0.00013698,2]
[383142966,1756865440721,-480.0,0.00013698,2]
[383142968,1756865440730,-480.0,0.00013698,2]
[383142970,1756865440739,-482.13806269,0.00013698,2]
[383142972,1756865440749,-484.93360932,0.00013698,2]
[383142974,1756865440758,-488.91766212,0.00013698,2]
[383142976,1756865440768,-487.50293661,0.00013698,2]
[383142978,1756865440777,-486.89487019,0.00013698,2]
[383142980,1756865440786,-480.0,0.00013698,2]
[383142982,1756865440795,-480.0,0.00013698,2]
[383142984,1756865440805,-484.33448433,0.00013698,2]
[383142986,1756865440814,-152.337365,0.00013698,2]
[383142988,1756865440823,-480.75215904,0.00013698,2]
[383142990,1756865440833,-480.0,0.00013698,2]
[383142992,1756865440843,-480.0,0.00013698,2]
[383142994,1756865440852,-480.97374479,0.00013698,2]
[383142996,1756865440862,-480.0,0.00013698,2]
[383142998,1756865440871,-480.0,0.00013698,2]
[383143000,1756865440880,-480.0,0.00013698,2]
[383143002,1756865440890,-262.97473756,0.00013698,2]
[383143004,1756865440899,-588.0216605,0.00013698,2]
[383143007,1756865440911,-480.0,0.00013698,2]
[383143009,1756865440921,-481.82916883,0.00013698,2]
[383143011,1756865440931,-480.0,0.00013698,2]
[383143013,1756865440940,-480.0,0.00013698,2]
[383143015,1756865440949,-480.0,0.00013698,2]
[383143017,1756865440959,-483.28587927,0.00013698,2]
[383143019,1756865440968,-482.09610446,0.00013698,2]
[383143020,1756865440978,-485.67598667,0.00013698,2]
[383143023,1756865440988,-481.9045692,0.00013698,2]
[383143025,1756865440997,-480.0,0.00013698,2]
[383143026,1756865441007,-592.12620897,0.00013698,2]
[383143029,1756865441017,-480.0,0.00013698,2]
[383143030,1756865441027,-165.077473,0.00013698,2]
[383143032,1756865441036,-573.81175768,0.00013698,2]
[383143035,1756865441046,-480.0,0.00013698,2]
[383143037,1756865441055,-480.0,0.00013698,2]
[383143038,1756865441064,-480.0,0.00013698,2]
[383143041,1756865441074,-480.0,0.00013698,2]
[383143043,1756865441084,-480.0,0.00013698,2]
[383143045,1756865441093,-480.0,0.00013698,2]
[383143047,1756865441103,-484.75304087,0.00013698,2]
[383143049,1756865441112,-581.40599556,0.00013698,2]
[383143051,1756865441122,-480.0,0.00013698,2]
[383143053,1756865441131,-480.0,0.00013698,2]
[383143055,1756865441140,-480.0,0.00013698,2]
[383143057,1756865441150,-482.71175893,0.00013698,2]
[383143059,1756865441160,-480.0,0.00013698,2]
[383143061,1756865441169,-480.0,0.00013698,2]
[383143063,1756865441179,-483.71849919,0.00013698,2]
[383143065,1756865441189,-485.43794715,0.00013698,2]
[383143067,1756865441198,-480.0,0.00013698,2]
[383143069,1756865441208,-482.86117376,0.00013698,2]
[383143071,1756865441217,-481.22404541,0.00013698,2]
[383143073,1756865441227,-480.0,0.00013698,2]
[383143075,1756865441236,-480.0,0.00013698,2]
[383143077,1756865441246,-480.0,0.00013698,2]
[383143079,1756865441255,-482.2499039,0.00013698,2]
[383143081,1756865441264,-483.1046896,0.00013698,2]
[383143083,1756865441274,-480.0,0.00013698,2]
[383143085,1756865441283,-484.74257792,0.00013698,2]
[383143087,1756865441293,-166.91645118,0.00013698,2]
[383143089,1756865441302,-483.88668735,0.00013698,2]
[383143091,1756865441311,-525.46862096,0.00013698,2]
[383143093,1756865441320,-480.0,0.00013698,2]
[383143095,1756865441329,-481.98075194,0.00013698,2]
[383143097,1756865441339,-481.81024029,0.00013698,2]
[383143099,1756865441351,-422.86584771,0.00013698,2]
[383143101,1756865441361,-486.69504879,0.00013698,2]
[383143103,1756865441370,-482.85678028,0.00013698,2]
[383143105,1756865441380,-481.57599325,0.00013698,2]
[383143107,1756865441390,-235.61874883,0.00013698,2]
[383143109,1756865441399,-155.721637,0.00013698,2]
[383143111,1756865441408,-480.0,0.00013698,2]
[383143113,1756865441418,-480.0,0.00013698,2]
[383143115,1756865441428,-480.0,0.00013698,2]
[383143117,1756865441437,-480.0,0.00013698,2]
[383143119,1756865441447,-482.47110658,0.00013698,2]
[383143121,1756865441457,-483.84868711,0.00013698,2]
[383143123,1756865441466,-480.0,0.00013698,2]
[383143125,1756865441476,-483.22676294,0.00013698,2]
[383143127,1756865441486,-480.0,0.00013698,2]
[383143130,1756865441496,-482.55239612,0.00013698,2]
[383143131,1756865441510,-482.68865625,0.00013698,2]
[383143134,1756865441520,-481.97529195,0.00013698,2]
[383143136,1756865441530,-480.0,0.00013698,2]
[383143138,1756865441539,-482.69128505,0.00013698,2]
[383143140,1756865441551,-480.0,0.00013698,2]
[383143141,1756865441560,-483.73364546,0.00013698,2]
[383143144,1756865441570,-482.97115439,0.00013698,2]
[383143146,1756865441581,-480.0,0.00013698,2]
[383143147,1756865441591,-485.6413899,0.00013698,2]
[383143150,1756865441601,-481.79670294,0.00013698,2]
[383143152,1756865441610,-480.0,0.00013698,2]
[383143153,1756865441619,-480.0,0.00013698,2]
[383143156,1756865441629,-483.74030578,0.00013698,2]
[383143157,1756865441638,-483.24766933,0.00013698,2]
[383143160,1756865441648,-482.60399112,0.00013698,2]
[383143162,1756865441657,-482.12956124,0.00013698,2]
[383143163,1756865441668,-482.24417626,0.00013698,2]
[383143165,1756865441679,-485.37921133,0.00013698,2]
[383143168,1756865441690,-483.44990475,0.00013698,2]
[383143170,1756865441699,-480.0,0.00013698,2]
[383143172,1756865441709,-483.87712723,0.00013698,2]
[383143174,1756865441719,-482.61114944,0.00013698,2]
[383143176,1756865441728,-480.0,0.00013698,2]
[383143178,1756865441738,-485.25351292,0.00013698,2]
[383143180,1756865441748,-482.60717759,0.00013698,2]
[383143182,1756865441757,-484.3381013,0.00013698,2]
[383143183,1756865441767,-549.03274778,0.00013698,2]
[383143186,1756865441779,-482.97660631,0.00013698,2]
[383143188,1756865441789,-480.0,0.00013698,2]
[383143190,1756865441798,-151.0,0.00013698,2]
[383143192,1756865441808,-480.0,0.00013698,2]
[383143194,1756865441817,-482.34254024,0.00013698,2]
[383143196,1756865441826,-480.0,0.00013698,2]
[383143198,1756865441836,-482.35699554,0.00013698,2]
[383143200,1756865441845,-480.0,0.00013698,2]
[383143202,1756865441855,-483.71976278,0.00013698,2]
[383143204,1756865441864,-481.44862236,0.00013698,2]
[383143206,1756865441874,-480.0,0.00013698,2]
[383143208,1756865441883,-483.41257696,0.00013698,2]
[383143210,1756865441892,-483.43663908,0.00013698,2]
[383143212,1756865441902,-433.6608642,0.00013698,2]
[383143214,1756865441912,-483.2688015,0.00013698,2]
[383143216,1756865441921,-566.35521511,0.00013698,2]
[383143218,1756865441932,-484.58746306,0.00013698,2]
[383143220,1756865441942,-483.03788247,0.00013698,2]
[383143222,1756865441951,-485.22669078,0.00013698,2]
[383143224,1756865441961,-480.0,0.00013698,2]
[383143226,1756865441971,-483.82921443,0.00013698,2]
[383143228,1756865441980,-480.0,0.00013698,2]
[383143244,1756865442119,-480.0,0.00013698,2]
[383143246,1756865442128,-480.0,0.00013698,2]
[383143248,1756865442137,-480.0,0.00013698,2]
[383143250,1756865442147,-483.96258786,0.00013698,2]
[383143252,1756865442156,-480.0,0.00013698,2]
[383143254,1756865442165,-489.7333241,0.00013698,2]
[383143255,1756865442175,-482.19812397,0.00013698,2]
[383143257,1756865442185,-520.40610467,0.00013698,2]
[383143259,1756865442195,-480.0,0.00013698,2]
[383143261,1756865442204,-480.0,0.00013698,2]
[383143263,1756865442214,-482.11105725,0.00013698,2]
[383143265,1756865442224,-869.6,0.00013698,2]
[383143267,1756865442233,-480.0,0.00013698,2]
[383143269,1756865442243,-480.0,0.00013698,2]
[383143271,1756865442252,-480.0,0.00013698,2]
[383143273,1756865442262,-468.67862221,0.00013698,2]
[383143275,1756865442271,-455.8372688,0.00013698,2]
[383143277,1756865442280,-470.21358391,0.00013698,2]
[383143279,1756865442290,-485.17556541,0.00013698,2]
[383143281,1756865442299,-480.0,0.00013698,2]
[383143283,1756865442309,-480.0,0.00013698,2]
[383143285,1756865442318,-204.33326787,0.00013698,2]
[383143287,1756865442328,-480.0,0.00013698,2]
[383143289,1756865442339,-480.0,0.00013698,2]
[383143291,1756865442348,-480.0,0.00013698,2]
[383143293,1756865442357,-469.14467302,0.00013698,2]
[383143295,1756865442367,-480.0,0.00013698,2]
[383143297,1756865442377,-324.95815291,0.00013698,2]
[383143299,1756865442386,-480.0,0.00013698,2]
[383143301,1756865442396,-480.0,0.00013698,2]
[383143303,1756865442406,-480.0,0.00013698,2]
[383143305,1756865442416,-480.0,0.00013698,2]
[383143307,1756865442426,-484.69321748,0.00013698,2]
[383143309,1756865442435,-485.06570564,0.00013698,2]
[383143311,1756865442445,-481.03749774,0.00013698,2]
[383143313,1756865442455,-480.0,0.00013698,2]
[383143315,1756865442465,-371.10218758,0.00013698,2]
[383143317,1756865442481,-480.0,0.00013698,2]
[383143320,1756865442492,-480.0,0.00013698,2]
[383143322,1756865442505,-480.0,0.00013698,2]
[383143325,1756865442515,-671.19,0.00013698,2]
[383143327,1756865442525,-480.0,0.00013698,2]
[383143328,1756865442534,-480.0,0.00013698,2]
[383143329,1756865442544,-480.0,0.00013698,2]
[383143330,1756865442553,-496.3,0.00013698,2]
[383143331,1756865442562,-484.21622238,0.00013698,2]
[383143332,1756865442572,-480.0,0.00013698,2]
[383143333,1756865442582,-480.0,0.00013698,2]
[383143334,1756865442592,-485.04256332,0.00013698,2]
[383143335,1756865442601,-480.0,0.00013698,2]
[383143336,1756865442611,-480.0,0.00013698,2]
[383143337,1756865442620,-583.04,0.00013698,2]
[383143338,1756865442629,-480.0,0.00013698,2]
[383143339,1756865442641,-582.45,0.00013698,2]
[383143340,1756865442657,-484.41684399,0.00013698,2]
[383143341,1756865442666,-457.50183412,0.00013698,2]
[383143342,1756865442677,-480.0,0.00013698,2]
[383143343,1756865442687,-611.38210326,0.00013698,2]
[383143344,1756865442696,-593.52826285,0.00013698,2]
[383143345,1756865442706,-480.0,0.00013698,2]
[383143346,1756865442715,-480.0,0.00013698,2]
[383143347,1756865442724,-480.0,0.00013698,2]
[383143348,1756865442734,-480.0,0.00013698,2]
[383143349,1756865442743,-480.0,0.00013698,2]
[383143350,1756865442755,-483.29195668,0.00013698,2]
[383143351,1756865442764,-480.0,0.00013698,2]
[383143352,1756865442774,-480.0,0.00013698,2]
[383143353,1756865442783,-212.93629483,0.00013698,2]
[383143354,1756865442792,-488.82241349,0.00013698,2]
[383143356,1756865442802,-480.0,0.00013698,2]
[383143358,1756865442812,-480.0,0.00013698,2]
[383143360,1756865442822,-2219.71,0.00013698,2]
[383143362,1756865442831,-480.0,0.00013698,2]
[383143364,1756865442841,-483.05614107,0.00013698,2]
[383143366,1756865442851,-480.0,0.00013698,2]
[383143369,1756865442860,-325.71483651,0.00013698,2]
[383143370,1756865442870,-247.94171355,0.00013698,2]
[383143372,1756865442880,-480.0,0.00013698,2]
[383143375,1756865442890,-480.0,0.00013698,2]
[383143377,1756865442900,-480.0,0.00013698,2]
[383143379,1756865442912,-480.0,0.00013698,2]
[383143381,1756865442921,-480.0,0.00013698,2]
[383143383,1756865442932,-480.0,0.00013698,2]
[383143385,1756865442941,-480.0,0.00013698,2]
[383143387,1756865442951,-1068.01,0.00013698,2]
[383143389,1756865442961,-485.22413506,0.00013698,2]
[383143391,1756865442971,-644.13,0.00013698,2]
[383143393,1756865442980,-483.62172023,0.00013698,2]
[383143395,1756865442989,-483.72601427,0.00013698,2]